Cogmind - Beta 9.4 @@@ ROGUE MODE // 2020.02.24 @ 20:09:51 Player: ExAliquo Result: Destroyed by as-80656 with Assembled Heavy Rifle Performance ------------- Evolutions (0) 0 Regions Visited (2) 400 Robots Destroyed (15) 75 Value Destroyed (440) 440 Prototype IDs (0) 0 Alien Tech Used (0) 0 Bonus (-36) -36 TOTAL SCORE: 879 Bonus ------- Friendly Fire -36 Cogmind --------- Core Integrity 0/250 Matter 264/300 Energy 125/125 System Corruption 0% Temperature Cool (0) Movement Walking (120) Location -10/Mines Parts ------- > --- POWER (1) -------- Light Ion Engine > --- PROPULSION (2) --- Aluminum Leg Aluminum Leg > --- UTILITY (2) ------ Small Storage Unit Small Storage Unit > --- WEAPON (2) ------- Assault Rifle > --- INVENTORY (8) ---- Light Ion Engine Heat Sink Medium Matter Pod (6) Peak State ------------ > --- POWER ------------ Light Ion Engine > --- PROPULSION ------- Aluminum Leg Aluminum Leg > --- UTILITY ---------- Small Storage Unit Small Storage Unit > --- WEAPON ----------- EM Pulse Gun Medium Laser > --- INVENTORY -------- Ion Engine Light Treads Light Treads Wheel Wheel Assault Rifle [Rating: 7] Favorites ----------- Power Ion Engine Engine Ion Engine Propulsion Light Treads Treads Light Treads Leg Aluminum Leg Wheel Wheel Utility Small Storage Unit Storage Small Storage Unit Weapon Medium Laser Energy Gun Medium Laser Ballistic Gun Assault Rifle Build | -11 -10 -10 ------- Run | Scr Mat Min Slots Evolved . | . . . Power . | . . . Propulsion . | . . . Utility . | . . . Weapon . | . . . Parts Attached 16 | 4 1 11 Power 4 | . 1 3 Engine 4 | . 1 3 Core . | . . . Reactor . | . . . Propulsion 5 | 2 . 3 Treads 2 | 1 . 1 Leg 2 | . . 2 Wheel 1 | 1 . . Hover . | . . . Flight . | . . . Utility 1 | 1 . . Device . | . . . Storage 1 | 1 . . Processor . | . . . Hackware . | . . . Protection . | . . . Artifact . | . . . Weapon 6 | 1 . 5 Energy Gun 5 | 1 . 4 Energy Cannon . | . . . Ballistic Gun 1 | . . 1 Ballistic Cannon . | . . . Launcher . | . . . Special Weapon . | . . . Impact Weapon . | . . . Slashing Weapon . | . . . Piercing Weapon . | . . . Special Melee Weapon . | . . . Unidentified Prototypes . | . . . Parts Lost 11 | . . 11 Power 2 | . . 2 Propulsion 3 | . . 3 Utility . | . . . Weapon 6 | . . 6 Highest Loss Streak 9 | . . 9 Average Slot Usage (%) 92 | . 100 86 Engine 13 | . 14 13 Treads 10 | . 14 7 Leg 3 | . . 5 Wheel 9 | . 14 6 Storage 28 | . 28 28 Energy Gun 21 | . 28 16 Ballistic Gun 3 | . . 6 Naked Turns . | . . . Heaviest Build 17 | 15 17 17 Greatest Support 20 | 20 10 20 Greatest Overweight (x) 4 | 1 1 4 Average Overweight (x) 1 | . 1 1 Largest Inventory Capacity 8 | 8 8 8 Average Capacity 7 | 7 8 8 Most Carried 8 | 8 8 8 Average Carried 6 | 6 7 4 Final Capacity 8 | 8 8 8 Final Carried 8 | 8 8 3 Class Distribution -------------------- 94% | Mutant 5% | Scavenger-Mutant Dominant Class ---------------- Mutant | -10/Materials Mutant | -10/Mines Resources | -11 -10 -10 ----------- Run | Scr Mat Min Matter Collected 377 | 220 30 127 Remotely . | . . . Salvage Created 583 | 69 140 374 Parts 25 | 4 5 16 Haulers Intercepted . | . . . Recyclers Shooed 2 | . . 2 Parts Field Recycled . | . . . Retrieved Matter . | . . . Parts Self-Destructed . | . . . Prevented . | . . . Kills | -11 -10 -10 ------- Run | Scr Mat Min Combat Hostiles Destroyed 11 | . 3 8 Guns 11 | . 3 8 Classes Destroyed 5 | 1 1 3 Worker 1 | . . 1 Recycler 3 | 1 . 2 Grunt 8 | . 3 5 Demolisher 2 | . . 2 Assembled 1 | . . 1 Best Kill Streak 3 | 1 3 3 Combat Bots Only 3 | . 3 2 Max Kills in Single Turn 1 | 1 1 1 Gunslinging . | . . . Exploded . | . . . Melee . | . . . Uniques/NPCs Destroyed . | . . . Combat | -11 -10 -10 -------- Run | Scr Mat Min Damage Taken 1279 | . 107 1172 Core 260 | . 45 215 Absorbed by Shields . | . . . Core Remaining (%) 100 | 100 . . Volleys Fired 50 | 1 7 42 Largest 2 | 1 2 2 Hottest 90 | 40 90 90 Shots Fired 75 | 1 14 60 Gun 75 | 1 14 60 Cannon . | . . . Launcher . | . . . Special . | . . . Kinetic 29 | . . 29 Thermal 28 | . 7 21 Explosive . | . . . Electromagnetic 18 | 1 7 10 Robot Hit Streak 18 | 1 7 18 Robot Miss Streak 3 | . 1 3 Penetration Max . | . . . Secondary Targets . | . . . Shots Hit Robots 57 | 1 10 46 Core Hits 26 | 1 5 20 Critical Hits 1 | . . 1 Critical Kills 1 | . . 1 Critical Parts Destroyed . | . . . Melee Attacks . | . . . Impact . | . . . Slashing . | . . . Piercing . | . . . Sneak Attacks . | . . . Combat Hostiles . | . . . Follow-up Attacks . | . . . Damage Inflicted 919 | 15 139 765 Guns 754 | 15 139 600 Cannons . | . . . Explosions 165 | . . 165 Melee . | . . . Ramming . | . . . Kinetic 307 | . . 307 Thermal 397 | . 67 330 Explosive . | . . . Electromagnetic 215 | 15 72 128 Impact . | . . . Slashing . | . . . Piercing . | . . . Highest Corruption . | . . . Average Corruption . | . . . Corruption Purged . | . . . Overload Shots . | . . . Overflow Damage 21 | . . 21 Projectiles . | . . . Explosions 21 | . . 21 Melee . | . . . Knockbacks . | . . . Impact . | . . . Kinetic . | . . . Secondary . | . . . Self-Inflicted Damage 11 | . . 11 Shots 2 | . . 2 Rammed . | . . . Targets Rammed . | . . . Kicked . | . . . Crushed . | . . . Highest Temperature 156 | . 156 156 Average Temperature 57 | . 66 54 Received Heat Transfer 192 | . 42 150 Siege Activations . | . . . Robots Corrupted . | . . . Combat Hostiles . | . . . Parts Fried . | . . . Impact Corruptions . | . . . Robots Melted . | . . . Combat Hostiles . | . . . Parts Melted 1 | . . 1 Heat Transferred 904 | . 185 719 Parts Sabotaged . | . . . Parts Stolen . | . . . Parts Stripped . | . . . Power Chain Reactions 3 | . . 3 Missiles Intercepted . | . . . Alert | -11 -10 -10 ------- Run | Scr Mat Min Peak Influence 186 | 5 139 186 Average Influence 105 | 4 59 147 Maximum Alert Level . | . . . Low Security (%) 100 | 100 100 100 Level 1 . | . . . Level 2 . | . . . Level 3 . | . . . Level 4 . | . . . Level 5 . | . . . High Security . | . . . Max Security . | . . . Squads Dispatched 4 | . 3 1 Investigation 4 | . 3 1 Extermination . | . . . Reinforcement . | . . . Assault . | . . . Garrison . | . . . Intercept . | . . . Construction Impeded . | . . . Haulers Reinforced . | . . . Stealth | -11 -10 -10 --------- Run | Scr Mat Min Distress Signals . | . . . Communications Jammed . | . . . Distress Signals . | . . . Times Spotted 20 | . 9 11 Peak Tracking Total 4 | . 4 3 Tactical Retreats . | . . . Traps | -11 -10 -10 ------- Run | Scr Mat Min Traps Triggered 1 | . 1 . Indirectly . | . . . Trap Hack Attempts . | . . . Triggered . | . . . Disarmed . | . . . Reprogrammed . | . . . Reused . | . . . Traps Extracted . | . . . Installed . | . . . Triggered . | . . . Machines | -11 -10 -10 ---------- Run | Scr Mat Min Machines Disabled 3 | . 1 2 Max in Single Turn 2 | . 1 2 Machines Sabotaged . | . . . Garrisons Compromised . | . . . Overloaded Fab Kills . | . . . Fab Network Shutdowns . | . . . Hacking | -11 -10 -10 --------- Run | Scr Mat Min Machines Accessed 3 | . 2 1 Terminals 2 | . 1 1 Fabricators . | . . . Repair Stations . | . . . Recycling Units 1 | . 1 . Scanalyzers . | . . . Garrison Access . | . . . Total Hacks 9 | . 5 4 Successful 4 | . 2 2 Failed 4 | . 2 2 Catastrophic 2 | . 1 1 Database Lockouts 1 | . 1 . Manual 9 | . 5 4 Terminals 8 | . 4 4 Fabricators . | . . . Repair Stations . | . . . Recycling Units 1 | . 1 . Scanalyzers . | . . . Garrison Access . | . . . Terminal Hacks 3 | . 1 2 Robot Analysis 3 | . 1 2 Fabricator Hacks . | . . . Repair Station Hacks . | . . . Recycling Unit Hacks . | . . . Scanalyzer . | . . . Garrison Access Hacks . | . . . Unauthorized Hacks 2 | . 2 . Terminals . | . . . Fabricators . | . . . Repair Stations . | . . . Recycling Units 1 | . 1 . Tunnel 1 | . 1 . Scanalyzers . | . . . Garrison Access . | . . . Data Cores Recovered . | . . . Used . | . . . Hacking Detections 2 | . 1 1 Full Trace Events 2 | . 1 1 Feedback Events . | . . . Feedback Blocked . | . . . Robot Schematics Acquired . | . . . Robots Built . | . . . Matter . | . . . Time . | . . . Total Robot Build Rating . | . . . Part Schematics Acquired . | . . . Parts Built . | . . . Matter . | . . . Time . | . . . Total Part Build Rating . | . . . Parts Repaired . | . . . Time . | . . . Parts Recycled . | . . . Recycled Matter . | . . . Retrieved Matter . | . . . Retrieved Components . | . . . Parts Scanalyzed . | . . . Part Schematics Acquired . | . . . Parts Damaged . | . . . Bothacking | -11 -10 -10 ------------ Run | Scr Mat Min Used RIF Installer . | . . . Robots Hacked . | . . . Non-combat . | . . . Combat . | . . . Robot Hacks Applied . | . . . Relay Couplers Released . | . . . Robots Rewired . | . . . Allies Hacked . | . . . Hacks Repelled . | . . . Allies | -11 -10 -10 -------- Run | Scr Mat Min Total Allies . | . . . Largest Group . | . . . Highest-Rated Group . | . . . Highest-Rated Ally . | . . . Total Orders . | . . . Ally Attacks . | . . . Total Damage . | . . . Kills . | . . . Allies Corrupted . | . . . Allies Melted . | . . . Intel | -11 -10 -10 ------- Run | Scr Mat Min Robot Analysis Total 3 | . 1 2 Derelict Logs Recovered . | . . . Drone Launches . | . . . Drone Recoveries . | . . . Exploration | -11 -10 -10 ------------- Run | Scr Mat Min Turns Passed 742 | 24 319 399 Spaces Moved 511 | 13 279 219 Core 28 | . . 28 Treads 2 | . . 2 Legs 48 | 8 . 40 Wheels 433 | 5 279 149 Hover . | . . . Flight . | . . . Fastest Speed 90 | 90 90 90 Average Speed 102 | 108 90 117 Slowest Speed 250 | 120 90 250 Overloaded Moves . | . . . Propulsion Burnouts . | . . . Robots Hopped . | . . . Cave-ins Triggered . | . . . Exploration Rate (%) 27 | 3 44 34 Regions Visited 2 Branch Regions 1 Pre-discovered Areas 1 | . 1 . Known Exits Taken . | . . . Unknown Exits Taken 2 | 1 1 . Scrap Searched 1 | . . 1 Spaces Dug . | . . . Terrain Destroyed 11 | . . 11 Melee . | . . . Projectile . | . . . AOE 11 | . . 11 Actions | -11 -10 -10 --------- Run | Scr Mat Min Total 654 | 19 335 300 Wait 65 | . 39 26 Move 509 | 12 278 219 Hop . | . . . Pick Up 9 | 2 5 2 Fast Attach 3 | 1 . 2 Attach 8 | . . 8 Detach . | . . . Swap 5 | 3 1 1 Drop 5 | . 5 . Fire 50 | 1 7 42 Melee . | . . . Ram . | . . . Kick . | . . . Crush . | . . . Escape Stasis . | . . . Rewire . | . . . Trap . | . . . Miscellaneous . | . . . Route ------- -11/Scrapyard -10/Materials (discovered 2 exits: [*Mat] / *Min) -10/Mines (discovered 2 exits: [*Mat x2]) History --------- Turn | Location | Event 5 | -11/Scrapyard | Discovered new exit (range 3) 25 | -11/Scrapyard | Entered Materials 44 | -10/Materials | Central database locked down 71 | -10/Materials | Discovered new exit (range 7) 156 | -10/Materials | Discovered new exit (range 4) 306 | -10/Materials | Build established: Mutant 344 | -10/Materials | Entered Mines 505 | -10/Mines | Discovered new exit (range 4) 508 | -10/Mines | Discovered new exit (range 11) 526 | -10/Mines | Assembled infested the area 531 | -10/Mines | Assisted by bots powering up and referring to "LRC-V3" 552 | -10/Mines | Core integrity fell below 50% 580 | -10/Mines | Lost 9 parts (1p3n5w) 641 | -10/Mines | Core integrity fell below 20% 743 | -10/Mines | Destroyed by as-80656 with Assembled Heavy Rifle Last Messages --------------- 00722_ K-01 Serf collects debris. 00724_ U-05 Engineer lays Concrete. 00725_ K-01 Serf collects debris. 00725_ U-05 Engineer lays Concrete. 00728_ The unstable cave ceiling collapses. 00728_ K-01 Serf collects debris. 00728_ U-05 Engineer lays Concrete. 00729_ The unstable cave ceiling collapses. 00729_ K-01 Serf collects debris. 00729_ U-05 Engineer lays Concrete. 00730_ as-44177 destroyed. 00730_ U-05 Engineer builds a Wall. 00731_ The unstable cave ceiling collapses. 00731_ K-01 Serf collects debris. 00732_ K-01 Serf destroyed. 00734_ U-05 Engineer builds a Wall. 00734_ K-01 Serf collects debris. 00734_ R-06 Scavenger collects Lgt. Ion Engine. 00738_ U-05 Engineer builds a Wall. 00738_ K-01 Serf collects debris. Map ----- +----------------------------------------------------+ | # #????????????????????????????????????????? | | # ##### #????????????????????????????????????????? | | # #???# #????????????????????????????????????????? | | # #???#!#????????????????????????????????????????? | | # #???#%###??????????????????????????????????????? | | # ##### #"####???????????????????????????????????? | | # # " " #???????????????????????????????????? | | # # " =% #???????????????????????????????????? | | # # " #??????????? ??????????????????????? | | = #??????????? ??????????????????????? | | ### % !% #?????????? a ????????????????????? | | ??#####"""# ##????????? # ??????????????????? | | ??????##### #?????????? a #??????????????????? | | ??????????# #?????????? % #??????????????????? | | ??????????# #?????????? ???????????????????? | | ????????### #??????????# aa ???????????????????? | | ????????# #?????????? == ###?????????????????? | | ???????## ###??????????#=%r #?????????????????? | | ???????## ###????####?## = # ##????????????????? | | ???###### ######## ###= #????????????????? | | ???# % # # ! #????????????????? | | #??# ############ # # % #?????????????????? | | #### #??#####???# ##=% #?????????????????? | | ##?????????# < ## k% #?????????????????? | | #?????????# u# #?????????????????? | | ##?????????##%=# #@ # ##??????????????????? | | ###???????????#! # # ####??????????????????? | | ####?????????????# # # # # #??????????????????? | | ?????????????????# # # ##??????????????????? | | ????????????????## ### ###??????????????????? | | ???????????????## ##??????????????????? | | ##########???### #???????????????????? | | # ##??# < ## #???????????????????? | | # ##?## # ##???????????????????? | | # ## ##?## # ##????????????????????? | | ????## #?# ## # % ####?????????????????????? | | ?????## #?## # # =##????????????????????????? | | ??????## ##?### # ##########??????????????????? | | ??????## ### # # # #???????????????? | | ??????# """ #### ### """ """?????????????????? | | ????# """ """ ????????????????????? | | ???# """ ## #### """ ????????????????????? | | ???# ######### ???????????????????? | | ???##### ##???????# ??????????????????? | | ???????## ##????????# ?????????????????? | | ????????###??????????? ?????????????????? | | ??????????????????????########???????????????????? | | ?????????????????????????????????????????????????? | | | | | +----------------------------------------------------+ Best States ------------- Heat Dissipation 25 Energy Generation 10 Energy Capacity 250 Matter Stores 300 Matter Capacity 300 Sight Range 16 Terrain Scan Density 10 Evasion (%) 42 Recoil Reduction 2 Item Schematics ----------------- None Robot Schematics ------------------ None Fabricated ------------ Nothing Alien Tech Used ----------------- None Achievements -------------- None Challenges ------------ None Game ------ Seed InsulatedMachineShredder Manual? 0 Play Time 00:09:07 Cumulative 12.0 hours Start 2020.02.24 @ 20:01:25 End 2020.02.24 @ 20:09:51 Sessions 1 Manual Loads 0 Difficulty Rogue Special Mode None Game No. 8 Rogue 8 Adventurer 0 Explorer 0 Win Type - Total 0 Types 0/0/0/0/0/0/0 Lore% 16 Gallery% 25 Achievement% 32 Wizard Run 0 Options --------- ASCII 0 Keyboard 0 Movement Numpad Keybinds 0 Fullscreen 2 Font 12/Smallcaps Map View 83x54 Tactical HUD 1 Map Filters NONE Filters NONE Steam 1 RUN: d7a958b8-70f9-4e84-8ce7-309d299131fb